[Event "Late-Titled-Tuesday-Blitz-February-20-2024"]
[Site "Chess.com"]
[Date "2024.02.20"]
[Round "9"]
[White "expii"]
[Black "rachidhuilda"]
[Result "1-0"]
[WhiteElo "2190"]
[BlackElo "2327"]
[TimeControl "180+1"]
[EndTime "15:45:03 PST"]
[Termination "expii won by resignation"]

1. e4 {[%clk 0:03:00.9]} 1... c6 {[%clk 0:02:59.1]} 2. d4 {[%clk 0:03:00.6]}
2... d5 {[%clk 0:02:59.6]} 3. f3 {[%clk 0:03:01]} 3... e6 {[%clk 0:02:56.1]} 4.
Nc3 {[%clk 0:03:00.4]} 4... Nf6 {[%clk 0:02:55.9]} 5. e5 {[%clk 0:02:51.8]} 5...
Nfd7 {[%clk 0:02:55.7]} 6. f4 {[%clk 0:02:46.5]} 6... c5 {[%clk 0:02:55.7]} 7.
Nf3 {[%clk 0:02:35.6]} 7... Nc6 {[%clk 0:02:55.5]} 8. Be3 {[%clk 0:02:30.4]}
8... Qb6 {[%clk 0:02:04.8]} 9. Qd2 {[%clk 0:02:16.5]} 9... cxd4 {[%clk 0:01:51]}
10. Nxd4 {[%clk 0:02:13.4]} 10... Qa5 {[%clk 0:01:25.7]} 11. Be2 {[%clk
0:02:05.9]} 11... Bc5 {[%clk 0:01:08.5]} 12. O-O {[%clk 0:01:58.9]} 12... O-O
{[%clk 0:01:07.4]} 13. Rad1 {[%clk 0:01:35.2]} 13... Nxd4 {[%clk 0:01:02.3]} 14.
Bxd4 {[%clk 0:01:13.9]} 14... Bxd4+ {[%clk 0:01:02.3]} 15. Qxd4 {[%clk
0:01:14.8]} 15... Qc5 {[%clk 0:01:02.5]} 16. Kh1 {[%clk 0:01:09.2]} 16... Qxd4
{[%clk 0:01:00.6]} 17. Rxd4 {[%clk 0:01:10.1]} 17... a6 {[%clk 0:00:59]} 18. Rd3
{[%clk 0:00:50.1]} 18... Nc5 {[%clk 0:00:58.1]} 19. Rh3 {[%clk 0:00:49.1]} 19...
g6 {[%clk 0:00:55.8]} 20. Bd3 {[%clk 0:00:48.2]} 20... Bd7 {[%clk 0:00:55.4]}
21. g4 {[%clk 0:00:43]} 21... Rac8 {[%clk 0:00:51.2]} 22. f5 {[%clk 0:00:33.9]}
22... b5 {[%clk 0:00:44.5]} 23. fxe6 {[%clk 0:00:20.8]} 23... fxe6 {[%clk
0:00:41]} 24. Rxf8+ {[%clk 0:00:21.7]} 24... Rxf8 {[%clk 0:00:40.3]} 25. Kg1
{[%clk 0:00:22.2]} 25... Bc6 {[%clk 0:00:37.9]} 26. Ne2 {[%clk 0:00:22.3]} 26...
Bd7 {[%clk 0:00:29.3]} 27. a3 {[%clk 0:00:20]} 27... Kg7 {[%clk 0:00:26.4]} 28.
c3 {[%clk 0:00:17.5]} 28... Bc8 {[%clk 0:00:26.4]} 29. Bc2 {[%clk 0:00:17]}
29... Nd7 {[%clk 0:00:26.4]} 30. Re3 {[%clk 0:00:15.5]} 30... Nc5 {[%clk
0:00:26.3]} 31. Nd4 {[%clk 0:00:13.2]} 31... Bd7 {[%clk 0:00:25.2]} 32. h3
{[%clk 0:00:13.3]} 32... Rf4 {[%clk 0:00:24]} 33. Kg2 {[%clk 0:00:12.8]} 33...
Nb7 {[%clk 0:00:21.9]} 34. Nb3 {[%clk 0:00:12.9]} 34... Bc8 {[%clk 0:00:18.2]}
35. Rf3 {[%clk 0:00:12.6]} 35... Rxf3 {[%clk 0:00:14.2]} 36. Kxf3 {[%clk
0:00:13.5]} 36... Kf7 {[%clk 0:00:13.5]} 37. Ke3 {[%clk 0:00:14]} 37... Ke7
{[%clk 0:00:11.2]} 38. h4 {[%clk 0:00:14.5]} 38... Bd7 {[%clk 0:00:11.4]} 39. h5
{[%clk 0:00:14.5]} 39... gxh5 {[%clk 0:00:10.2]} 40. gxh5 {[%clk 0:00:15.4]}
40... h6 {[%clk 0:00:10.8]} 41. Bg6 {[%clk 0:00:15.6]} 41... a5 {[%clk
0:00:10.8]} 42. Nd4 {[%clk 0:00:15.4]} 42... Nc5 {[%clk 0:00:09.6]} 43. b4
{[%clk 0:00:15.7]} 43... axb4 {[%clk 0:00:09.4]} 44. axb4 {[%clk 0:00:16.6]}
44... Na4 {[%clk 0:00:10]} 45. Kd2 {[%clk 0:00:16.7]} 45... Nb2 {[%clk
0:00:10.8]} 46. Bd3 {[%clk 0:00:16.2]} 46... Nc4+ {[%clk 0:00:11.7]} 47. Bxc4
{[%clk 0:00:16.4]} 47... dxc4 {[%clk 0:00:12.2]} 48. Ke3 {[%clk 0:00:15.6]}
48... Be8 {[%clk 0:00:13.1]} 49. Kf4 {[%clk 0:00:15.5]} 49... Bxh5 {[%clk
0:00:13.7]} 50. Nxb5 {[%clk 0:00:15.7]} 50... Be2 {[%clk 0:00:12.9]} 51. Nd6
{[%clk 0:00:15.9]} 51... h5 {[%clk 0:00:12.6]} 52. b5 {[%clk 0:00:15.5]} 52...
Kd7 {[%clk 0:00:12.9]} 53. b6 {[%clk 0:00:15.4]} 53... Kc6 {[%clk 0:00:12.4]}
54. b7 {[%clk 0:00:15.6]} 54... Kc7 {[%clk 0:00:13.1]} 55. Ke3 {[%clk
0:00:14.7]} 55... Bg4 {[%clk 0:00:12.9]} 56. Kf4 {[%clk 0:00:14]} 56... Bd1
{[%clk 0:00:12.6]} 57. Kg5 {[%clk 0:00:12.7]} 57... Bf3 {[%clk 0:00:11.9]} 58.
Nxc4 {[%clk 0:00:11]} 58... Bxb7 {[%clk 0:00:11]} 59. Kxh5 {[%clk 0:00:11]}
59... Bd5 {[%clk 0:00:11.4]} 60. Nd6 {[%clk 0:00:10.9]} 60... Kc6 {[%clk
0:00:11.9]} 61. c4 {[%clk 0:00:09.5]} 61... Be4 {[%clk 0:00:09.6]} 62. Kg5
{[%clk 0:00:10.1]} 62... Kc5 {[%clk 0:00:09.9]} 63. Kf6 {[%clk 0:00:10.4]} 63...
Bf5 {[%clk 0:00:07.7]} 64. Nxf5 {[%clk 0:00:10.1]} 64... exf5 {[%clk 0:00:08.6]}
65. Kxf5 {[%clk 0:00:10.9]} 65... Kxc4 {[%clk 0:00:08.8]} 66. e6 {[%clk
0:00:11]} 66... Kd5 {[%clk 0:00:09.7]} 67. e7 {[%clk 0:00:11.5]} 67... Kd6
{[%clk 0:00:10.6]} 68. e8=Q {[%clk 0:00:12]} 1-0

[Event "Late-Titled-Tuesday-Blitz-February-20-2024"]
[Site "Chess.com"]
[Date "2024.02.20"]
[Round "9"]
[White "vovachesss"]
[Black "jcibarra"]
[Result "0-1"]
[WhiteElo "2791"]
[BlackElo "2937"]
[TimeControl "180+1"]
[EndTime "15:45:04 PST"]
[Termination "jcibarra won on time"]

1. e4 {[%clk 0:03:00.9]} 1... c5 {[%clk 0:02:59.5]} 2. Nf3 {[%clk 0:02:52.8]}
2... Nc6 {[%clk 0:02:59]} 3. c3 {[%clk 0:02:52.7]} 3... Nf6 {[%clk 0:02:58.6]}
4. e5 {[%clk 0:02:52.9]} 4... Nd5 {[%clk 0:02:59.2]} 5. Bc4 {[%clk 0:02:53.6]}
5... Nb6 {[%clk 0:02:59.2]} 6. Bb3 {[%clk 0:02:54.4]} 6... g6 {[%clk 0:02:59.6]}
7. O-O {[%clk 0:02:51.5]} 7... Bg7 {[%clk 0:02:59.5]} 8. Re1 {[%clk 0:02:52.2]}
8... O-O {[%clk 0:02:58.5]} 9. d3 {[%clk 0:02:43.9]} 9... d5 {[%clk 0:02:49.1]}
10. exd6 {[%clk 0:02:44.8]} 10... Qxd6 {[%clk 0:02:48]} 11. Na3 {[%clk
0:02:35.3]} 11... Bf5 {[%clk 0:02:44.6]} 12. Be3 {[%clk 0:02:30.9]} 12... Rad8
{[%clk 0:02:36.5]} 13. d4 {[%clk 0:02:31.1]} 13... cxd4 {[%clk 0:02:25.1]} 14.
Nb5 {[%clk 0:02:31]} 14... Qb8 {[%clk 0:02:20.8]} 15. Nbxd4 {[%clk 0:02:31]}
15... Nxd4 {[%clk 0:02:12.9]} 16. Bxd4 {[%clk 0:02:30.3]} 16... Bg4 {[%clk
0:02:02.6]} 17. Rxe7 {[%clk 0:02:19.2]} 17... Bxd4 {[%clk 0:01:49.6]} 18. cxd4
{[%clk 0:02:17.7]} 18... Nd5 {[%clk 0:01:42.4]} 19. Re4 {[%clk 0:02:01.8]} 19...
Nf6 {[%clk 0:01:39.6]} 20. Re7 {[%clk 0:02:01.7]} 20... Nd5 {[%clk 0:01:11.1]}
21. Re5 {[%clk 0:02:01.4]} 21... Nf6 {[%clk 0:01:04.2]} 22. h3 {[%clk
0:01:57.3]} 22... Bxf3 {[%clk 0:00:55.5]} 23. Qxf3 {[%clk 0:01:58.2]} 23... Qd6
{[%clk 0:00:54]} 24. Rae1 {[%clk 0:01:55.6]} 24... Rd7 {[%clk 0:00:52.6]} 25. g4
{[%clk 0:00:38.5]} 25... Kg7 {[%clk 0:00:40.6]} 26. d5 {[%clk 0:00:29.8]} 26...
Rc7 {[%clk 0:00:33]} 27. Kg2 {[%clk 0:00:24.9]} 27... a5 {[%clk 0:00:31.6]} 28.
a3 {[%clk 0:00:24]} 28... b5 {[%clk 0:00:30.7]} 29. a4 {[%clk 0:00:22.8]} 29...
bxa4 {[%clk 0:00:30.1]} 30. Bxa4 {[%clk 0:00:23.7]} 30... Rc4 {[%clk 0:00:28]}
31. Bc6 {[%clk 0:00:23.2]} 31... Rb4 {[%clk 0:00:24.4]} 32. R1e2 {[%clk
0:00:23.1]} 32... Rxb2 {[%clk 0:00:20.9]} 33. Qc3 {[%clk 0:00:16.3]} 33... Rxe2
{[%clk 0:00:17.8]} 34. Rxe2 {[%clk 0:00:17.2]} 34... Kg8 {[%clk 0:00:17.2]} 35.
Qxa5 {[%clk 0:00:15.8]} 35... Rd8 {[%clk 0:00:13.3]} 36. Rd2 {[%clk 0:00:14.2]}
36... h5 {[%clk 0:00:11.7]} 37. Qa4 {[%clk 0:00:12.4]} 37... hxg4 {[%clk
0:00:11.4]} 38. hxg4 {[%clk 0:00:13.2]} 38... Qe5 {[%clk 0:00:10.3]} 39. Qd4
{[%clk 0:00:12]} 39... Qg5 {[%clk 0:00:09.9]} 40. f3 {[%clk 0:00:12.3]} 40...
Nh5 {[%clk 0:00:09.6]} 41. Qf2 {[%clk 0:00:06.1]} 41... Nf4+ {[%clk 0:00:09.6]}
42. Kf1 {[%clk 0:00:05.9]} 42... Qe5 {[%clk 0:00:09.1]} 43. Qd4 {[%clk
0:00:04.6]} 43... Qg5 {[%clk 0:00:07.4]} 44. d6 {[%clk 0:00:05]} 44... Ne6
{[%clk 0:00:06.7]} 45. Qc3 {[%clk 0:00:03]} 45... Rb8 {[%clk 0:00:04.8]} 46. d7
{[%clk 0:00:02.2]} 46... Qh4 {[%clk 0:00:05.3]} 47. d8=Q+ {[%clk 0:00:01.9]}
47... Nxd8 {[%clk 0:00:05.5]} 48. Bd5 {[%clk 0:00:02.2]} 48... Rb1+ {[%clk
0:00:04.8]} 49. Ke2 {[%clk 0:00:02.9]} 49... Qh2+ {[%clk 0:00:04.6]} 50. Kd3
{[%clk 0:00:03.3]} 50... Qf4 {[%clk 0:00:04.1]} 51. Qd4 {[%clk 0:00:02.3]} 51...
Qc7 {[%clk 0:00:03.5]} 52. Qe4 {[%clk 0:00:02.3]} 52... Nb7 {[%clk 0:00:02.5]}
53. Qxg6+ {[%clk 0:00:02.7]} 53... Kf8 {[%clk 0:00:02.4]} 54. Qh6+ {[%clk
0:00:03.2]} 54... Kg8 {[%clk 0:00:03.1]} 55. Qg6+ {[%clk 0:00:03.1]} 55... Kf8
{[%clk 0:00:03.8]} 56. Qh6+ {[%clk 0:00:03.4]} 56... Ke8 {[%clk 0:00:03.2]} 57.
Re2+ {[%clk 0:00:03.2]} 57... Kd7 {[%clk 0:00:02.8]} 0-1

[Event "Late-Titled-Tuesday-Blitz-February-20-2024"]
[Site "Chess.com"]
[Date "2024.02.20"]
[Round "9"]
[White "Sanyura"]
[Black "maroro07"]
[Result "1/2-1/2"]
[WhiteElo "2611"]
[BlackElo "2440"]
[TimeControl "180+1"]
[EndTime "15:45:10 PST"]
[Termination "Game drawn - insufficient material"]

1. e4 {[%clk 0:00:51.9]} 1... c5 {[%clk 0:02:44.2]} 2. Nf3 {[%clk 0:00:51.7]}
2... e6 {[%clk 0:02:43.6]} 3. d4 {[%clk 0:00:51.7]} 3... cxd4 {[%clk 0:02:44.2]}
4. Nxd4 {[%clk 0:00:52.6]} 4... Nc6 {[%clk 0:02:43.7]} 5. Nc3 {[%clk 0:00:52.7]}
5... a6 {[%clk 0:02:42.5]} 6. Nxc6 {[%clk 0:00:51.7]} 6... bxc6 {[%clk 0:02:40]}
7. Bd3 {[%clk 0:00:52.1]} 7... d5 {[%clk 0:02:39.3]} 8. O-O {[%clk 0:00:51.8]}
8... Nf6 {[%clk 0:02:33.8]} 9. Qf3 {[%clk 0:00:47.6]} 9... Bd6 {[%clk
0:02:01.4]} 10. Re1 {[%clk 0:00:41.5]} 10... Qc7 {[%clk 0:01:59.7]} 11. Bg5
{[%clk 0:00:29.3]} 11... d4 {[%clk 0:01:22.3]} 12. Ne2 {[%clk 0:00:07.7]} 12...
Bxh2+ {[%clk 0:01:20.2]} 13. Kh1 {[%clk 0:00:07.9]} 13... Be5 {[%clk 0:01:20.9]}
14. Qh3 {[%clk 0:00:06]} 14... h6 {[%clk 0:01:12.6]} 15. f4 {[%clk 0:00:06.1]}
15... hxg5 {[%clk 0:00:38.9]} 16. Qxh8+ {[%clk 0:00:05.7]} 16... Ke7 {[%clk
0:00:38.9]} 17. fxe5 {[%clk 0:00:06.2]} 17... Qxe5 {[%clk 0:00:38.7]} 18. Qh2
{[%clk 0:00:06.9]} 18... Qc5 {[%clk 0:00:37.9]} 19. Qg3 {[%clk 0:00:05.5]} 19...
Bd7 {[%clk 0:00:35.7]} 20. e5 {[%clk 0:00:05.3]} 20... Rh8+ {[%clk 0:00:28.7]}
21. Kg1 {[%clk 0:00:05.7]} 21... Nd5 {[%clk 0:00:28.8]} 22. Qxg5+ {[%clk
0:00:05.9]} 22... Ke8 {[%clk 0:00:23.2]} 23. Ng3 {[%clk 0:00:03]} 23... f5
{[%clk 0:00:12.4]} 24. exf6 {[%clk 0:00:02.6]} 24... gxf6 {[%clk 0:00:12.4]} 25.
Qg7 {[%clk 0:00:03.2]} 25... Rf8 {[%clk 0:00:11]} 26. Ne4 {[%clk 0:00:03.7]}
26... Qe7 {[%clk 0:00:07.4]} 27. Qxe7+ {[%clk 0:00:03.4]} 27... Kxe7 {[%clk
0:00:08.3]} 28. Nf2 {[%clk 0:00:03.6]} 28... Kd6 {[%clk 0:00:08]} 29. Ne4+
{[%clk 0:00:03.8]} 29... Kc7 {[%clk 0:00:08]} 30. Rf1 {[%clk 0:00:04.7]} 30...
f5 {[%clk 0:00:07.9]} 31. Nc5 {[%clk 0:00:05]} 31... Bc8 {[%clk 0:00:08.3]} 32.
Rae1 {[%clk 0:00:05]} 32... Kd6 {[%clk 0:00:08.3]} 33. Nxa6 {[%clk 0:00:04.5]}
33... Bxa6 {[%clk 0:00:08.4]} 34. Bxa6 {[%clk 0:00:05.4]} 34... Ne3 {[%clk
0:00:06.2]} 35. Rf2 {[%clk 0:00:04.9]} 35... Ra8 {[%clk 0:00:05.9]} 36. Bd3
{[%clk 0:00:05.4]} 36... Rxa2 {[%clk 0:00:05.7]} 37. b3 {[%clk 0:00:05.8]} 37...
c5 {[%clk 0:00:05.7]} 38. g3 {[%clk 0:00:06]} 38... Kd5 {[%clk 0:00:03.2]} 39.
Rh2 {[%clk 0:00:06.3]} 39... Kd6 {[%clk 0:00:03.4]} 40. Rh6 {[%clk 0:00:06.3]}
40... Ke5 {[%clk 0:00:03.6]} 41. Rh8 {[%clk 0:00:06.4]} 41... Kd6 {[%clk
0:00:03.7]} 42. Kf2 {[%clk 0:00:07]} 42... e5 {[%clk 0:00:03.1]} 43. Kf3 {[%clk
0:00:06.8]} 43... e4+ {[%clk 0:00:04]} 44. Bxe4 {[%clk 0:00:06.6]} 44... fxe4+
{[%clk 0:00:04.9]} 45. Kxe4 {[%clk 0:00:07.4]} 45... Rxc2 {[%clk 0:00:05.4]} 46.
Rh6+ {[%clk 0:00:07.7]} 46... Kc7 {[%clk 0:00:04.9]} 47. Ra1 {[%clk 0:00:08.4]}
47... Re2 {[%clk 0:00:02.2]} 48. Ra7+ {[%clk 0:00:08.5]} 48... Kb8 {[%clk
0:00:02.7]} 49. Rg7 {[%clk 0:00:08.3]} 49... Ng4+ {[%clk 0:00:02.8]} 50. Kf3
{[%clk 0:00:08.8]} 50... Nxh6 {[%clk 0:00:03.7]} 51. Kxe2 {[%clk 0:00:09.1]}
51... Nf5 {[%clk 0:00:04.6]} 52. Rg5 {[%clk 0:00:08.8]} 52... Nd6 {[%clk
0:00:05.1]} 53. Rxc5 {[%clk 0:00:08.5]} 53... Kb7 {[%clk 0:00:06]} 54. Rd5
{[%clk 0:00:08.6]} 54... Ne4 {[%clk 0:00:06.9]} 55. g4 {[%clk 0:00:08.8]} 55...
Nc3+ {[%clk 0:00:06.9]} 56. Kd3 {[%clk 0:00:09.4]} 56... Nxd5 {[%clk 0:00:07.8]}
57. Kxd4 {[%clk 0:00:10.1]} 57... Kc6 {[%clk 0:00:08.1]} 58. g5 {[%clk
0:00:09.4]} 58... Kd6 {[%clk 0:00:09]} 59. Ke4 {[%clk 0:00:07.3]} 59... Ke6
{[%clk 0:00:08]} 60. g6 {[%clk 0:00:07.4]} 60... Ne7 {[%clk 0:00:07.9]} 61. g7
{[%clk 0:00:07]} 61... Kf7 {[%clk 0:00:08.5]} 62. Ke5 {[%clk 0:00:07.5]} 62...
Kxg7 {[%clk 0:00:08.7]} 63. Kd6 {[%clk 0:00:08.2]} 63... Kf8 {[%clk 0:00:09.2]}
64. b4 {[%clk 0:00:08.7]} 64... Ke8 {[%clk 0:00:08.9]} 65. Kc7 {[%clk
0:00:07.7]} 65... Nd5+ {[%clk 0:00:08.1]} 66. Kc6 {[%clk 0:00:08.1]} 66... Nxb4+
{[%clk 0:00:09]} 1/2-1/2

[Event "Late-Titled-Tuesday-Blitz-February-20-2024"]
[Site "Chess.com"]
[Date "2024.02.20"]
[Round "9"]
[White "Rud_Makarian"]
[Black "DrVelja"]
[Result "0-1"]
[WhiteElo "3071"]
[BlackElo "2998"]
[TimeControl "180+1"]
[EndTime "15:45:20 PST"]
[Termination "DrVelja won on time"]

1. d4 {[%clk 0:03:00.9]} 1... Nf6 {[%clk 0:03:00.7]} 2. c4 {[%clk 0:03:01.1]}
2... g6 {[%clk 0:03:01.3]} 3. Nc3 {[%clk 0:03:00.1]} 3... Bg7 {[%clk 0:03:01.8]}
4. e4 {[%clk 0:03:00.7]} 4... d6 {[%clk 0:03:02.5]} 5. Be2 {[%clk 0:03:01.2]}
5... O-O {[%clk 0:03:02]} 6. Nf3 {[%clk 0:03:01.8]} 6... e5 {[%clk 0:03:00.4]}
7. O-O {[%clk 0:03:02.2]} 7... h6 {[%clk 0:03:00.8]} 8. Qc2 {[%clk 0:02:59.5]}
8... Re8 {[%clk 0:02:57.8]} 9. dxe5 {[%clk 0:02:53.3]} 9... dxe5 {[%clk
0:02:58.7]} 10. Rd1 {[%clk 0:02:47.1]} 10... Nbd7 {[%clk 0:02:59.3]} 11. h3
{[%clk 0:02:46.7]} 11... Nh5 {[%clk 0:02:55]} 12. Be3 {[%clk 0:02:46.9]} 12...
Nf4 {[%clk 0:02:54.7]} 13. Bf1 {[%clk 0:02:44.6]} 13... c6 {[%clk 0:02:53.9]}
14. c5 {[%clk 0:02:39.2]} 14... Qe7 {[%clk 0:02:51.3]} 15. b4 {[%clk 0:02:38.2]}
15... Nf8 {[%clk 0:02:43.9]} 16. Rd6 {[%clk 0:02:31.2]} 16... N8e6 {[%clk
0:02:21.6]} 17. Rad1 {[%clk 0:02:19.1]} 17... Nc7 {[%clk 0:01:59.3]} 18. Kh2
{[%clk 0:02:11]} 18... a6 {[%clk 0:01:46.4]} 19. a4 {[%clk 0:02:07.2]} 19...
Nfe6 {[%clk 0:01:38.9]} 20. Bc4 {[%clk 0:02:05.5]} 20... Kh7 {[%clk 0:01:26.1]}
21. Qb3 {[%clk 0:01:51.6]} 21... Rf8 {[%clk 0:01:24.4]} 22. b5 {[%clk
0:01:46.5]} 22... axb5 {[%clk 0:01:23.1]} 23. axb5 {[%clk 0:01:47.4]} 23... f5
{[%clk 0:01:16.5]} 24. b6 {[%clk 0:01:30.9]} 24... Nd4 {[%clk 0:00:24.8]} 25.
Nxd4 {[%clk 0:01:30.8]} 25... exd4 {[%clk 0:00:25.7]} 26. Bxd4 {[%clk 0:01:31]}
26... Bxd4 {[%clk 0:00:25.7]} 27. R6xd4 {[%clk 0:01:13]} 27... Qe5+ {[%clk
0:00:26.6]} 28. Kg1 {[%clk 0:00:59.9]} 28... Ne6 {[%clk 0:00:27.1]} 29. Bxe6
{[%clk 0:00:52.2]} 29... Bxe6 {[%clk 0:00:28]} 30. Qb4 {[%clk 0:00:50.9]} 30...
f4 {[%clk 0:00:28.7]} 31. f3 {[%clk 0:00:50.8]} 31... Qg5 {[%clk 0:00:27.8]} 32.
Kf1 {[%clk 0:00:35.5]} 32... Qh4 {[%clk 0:00:15.4]} 33. Ne2 {[%clk 0:00:22.7]}
33... Ra2 {[%clk 0:00:15.5]} 34. Rd7+ {[%clk 0:00:20.5]} 34... Bxd7 {[%clk
0:00:10.4]} 35. Rxd7+ {[%clk 0:00:21.4]} 35... Kh8 {[%clk 0:00:11.2]} 36. Qd4+
{[%clk 0:00:21.6]} 36... Qf6 {[%clk 0:00:11.6]} 37. Qxf6+ {[%clk 0:00:21.4]}
37... Rxf6 {[%clk 0:00:12.5]} 38. Rxb7 {[%clk 0:00:21.9]} 38... Rb2 {[%clk
0:00:06.7]} 39. Rc7 {[%clk 0:00:21.7]} 39... Rf8 {[%clk 0:00:06.5]} 40. Rxc6
{[%clk 0:00:07.4]} 40... Ra8 {[%clk 0:00:06]} 41. b7 {[%clk 0:00:02.6]} 41...
Rxb7 {[%clk 0:00:05.4]} 42. Nxf4 {[%clk 0:00:02]} 42... Rb2 {[%clk 0:00:05.4]}
43. Ne2 {[%clk 0:00:01.8]} 43... Ra1+ {[%clk 0:00:05.6]} 44. Kf2 {[%clk
0:00:02.3]} 44... Raa2 {[%clk 0:00:06.5]} 45. Rxg6 {[%clk 0:00:02.6]} 45...
Rxe2+ {[%clk 0:00:07.3]} 46. Kg1 {[%clk 0:00:03.5]} 46... Kh7 {[%clk 0:00:05.9]}
47. Rg4 {[%clk 0:00:04.1]} 47... Rec2 {[%clk 0:00:06.4]} 48. Kh2 {[%clk
0:00:04.2]} 48... Rxc5 {[%clk 0:00:06.8]} 49. h4 {[%clk 0:00:04.8]} 49... Rc6
{[%clk 0:00:06.3]} 50. h5 {[%clk 0:00:03.1]} 50... Rc5 {[%clk 0:00:06.6]} 51.
Kg3 {[%clk 0:00:01.8]} 51... Rxh5 {[%clk 0:00:07]} 52. f4 {[%clk 0:00:02.3]}
52... Rb5 {[%clk 0:00:06.5]} 53. Kh3 {[%clk 0:00:02.3]} 53... Rb7 {[%clk
0:00:05.2]} 54. e5 {[%clk 0:00:01.2]} 54... Rg7 {[%clk 0:00:05.7]} 55. g3 {[%clk
0:00:02]} 55... h5 {[%clk 0:00:05.4]} 56. Rh4 {[%clk 0:00:02.2]} 56... Kh6
{[%clk 0:00:04.8]} 57. f5 {[%clk 0:00:02.8]} 57... Ra3 {[%clk 0:00:05]} 58. Rf4
{[%clk 0:00:02.1]} 58... Rgxg3+ {[%clk 0:00:05.3]} 59. Kh2 {[%clk 0:00:02.8]}
59... Rgf3 {[%clk 0:00:05.7]} 60. Rxf3 {[%clk 0:00:01.4]} 60... Rxf3 {[%clk
0:00:05.4]} 0-1

[Event "Late-Titled-Tuesday-Blitz-February-20-2024"]
[Site "Chess.com"]
[Date "2024.02.20"]
[Round "9"]
[White "maxip32"]
[Black "Bilan_Danila"]
[Result "1-0"]
[WhiteElo "2652"]
[BlackElo "2473"]
[TimeControl "180+1"]
[EndTime "15:45:28 PST"]
[Termination "maxip32 won by resignation"]

1. e4 {[%clk 0:03:00.9]} 1... c6 {[%clk 0:02:54.1]} 2. d4 {[%clk 0:03:00.1]}
2... d5 {[%clk 0:02:55]} 3. e5 {[%clk 0:03:00.4]} 3... c5 {[%clk 0:02:51]} 4.
Nf3 {[%clk 0:03:00]} 4... Nc6 {[%clk 0:02:51.1]} 5. c4 {[%clk 0:02:59.6]} 5...
e6 {[%clk 0:02:50.4]} 6. Nc3 {[%clk 0:02:58.6]} 6... Nge7 {[%clk 0:02:43.2]} 7.
dxc5 {[%clk 0:02:54.3]} 7... Ng6 {[%clk 0:02:15.1]} 8. cxd5 {[%clk 0:02:50.7]}
8... exd5 {[%clk 0:02:11.7]} 9. Bb5 {[%clk 0:02:48.7]} 9... Bxc5 {[%clk
0:02:05.1]} 10. Qxd5 {[%clk 0:02:44.9]} 10... Qb6 {[%clk 0:01:53.9]} 11. O-O
{[%clk 0:02:35.6]} 11... Be6 {[%clk 0:01:45.2]} 12. Qe4 {[%clk 0:02:34.9]} 12...
O-O {[%clk 0:01:32.9]} 13. h4 {[%clk 0:02:30]} 13... Nge7 {[%clk 0:01:22.8]} 14.
Bd3 {[%clk 0:02:17.5]} 14... Bf5 {[%clk 0:01:16.5]} 15. Qe2 {[%clk 0:02:17.1]}
15... Bxd3 {[%clk 0:01:10.5]} 16. Qxd3 {[%clk 0:02:18]} 16... Rad8 {[%clk
0:01:07.9]} 17. Qe4 {[%clk 0:02:09.9]} 17... Qb4 {[%clk 0:00:34.6]} 18. a3
{[%clk 0:01:51.5]} 18... Qxe4 {[%clk 0:00:30.8]} 19. Nxe4 {[%clk 0:01:52.4]}
19... Bd4 {[%clk 0:00:31.3]} 20. Bg5 {[%clk 0:01:44.6]} 20... h6 {[%clk
0:00:23.4]} 21. Bxe7 {[%clk 0:01:44.1]} 21... Nxe7 {[%clk 0:00:23.6]} 22. Nxd4
{[%clk 0:01:42.1]} 22... Rxd4 {[%clk 0:00:23.4]} 23. Rfe1 {[%clk 0:01:41.2]}
23... Ng6 {[%clk 0:00:20.9]} 24. Nd6 {[%clk 0:01:32.9]} 24... b6 {[%clk
0:00:17.8]} 25. h5 {[%clk 0:01:30.4]} 25... Nf4 {[%clk 0:00:18]} 26. Nf5 {[%clk
0:01:28]} 26... Rd2 {[%clk 0:00:16]} 27. b4 {[%clk 0:01:20.2]} 27... Nxh5 {[%clk
0:00:12.9]} 28. Re4 {[%clk 0:01:18.3]} 28... g6 {[%clk 0:00:11.9]} 29. Nxh6+
{[%clk 0:01:16.3]} 29... Kg7 {[%clk 0:00:11.8]} 30. Ng4 {[%clk 0:01:16.1]} 30...
Rc8 {[%clk 0:00:11.3]} 31. Ne3 {[%clk 0:00:57.5]} 31... Kg8 {[%clk 0:00:06.4]}
32. e6 {[%clk 0:00:55.1]} 32... fxe6 {[%clk 0:00:06.5]} 33. Rxe6 {[%clk
0:00:52.5]} 33... Kf7 {[%clk 0:00:06.7]} 34. Re5 {[%clk 0:00:48.4]} 34... Kf6
{[%clk 0:00:04.9]} 35. Rd5 {[%clk 0:00:47.9]} 35... Rxd5 {[%clk 0:00:04.3]} 36.
Nxd5+ {[%clk 0:00:48.8]} 36... Ke5 {[%clk 0:00:05]} 37. Ne3 {[%clk 0:00:48]}
37... Nf4 {[%clk 0:00:05.5]} 38. g3 {[%clk 0:00:47.9]} 38... Ne2+ {[%clk
0:00:05.1]} 39. Kg2 {[%clk 0:00:47.5]} 39... Nd4 {[%clk 0:00:06]} 40. Re1 {[%clk
0:00:46.7]} 40... Kd6 {[%clk 0:00:05.1]} 41. Rd1 {[%clk 0:00:46.6]} 41... Ke5
{[%clk 0:00:05.5]} 42. Ng4+ {[%clk 0:00:47]} 42... Ke4 {[%clk 0:00:04.7]} 43.
Nf6+ {[%clk 0:00:34.6]} 43... Ke5 {[%clk 0:00:04.4]} 44. Nd7+ {[%clk 0:00:33.9]}
44... Ke4 {[%clk 0:00:04.9]} 45. f3+ {[%clk 0:00:27]} 45... Nxf3 {[%clk
0:00:04.1]} 46. Nf6+ {[%clk 0:00:26.7]} 46... Ke5 {[%clk 0:00:04.1]} 47. Ng4+
{[%clk 0:00:24.2]} 47... Ke4 {[%clk 0:00:04.7]} 48. Nf2+ {[%clk 0:00:24.5]}
48... Ke3 {[%clk 0:00:05.3]} 49. Rd3+ {[%clk 0:00:24.8]} 49... Ke2 {[%clk
0:00:05.9]} 50. Rxf3 {[%clk 0:00:25.7]} 50... Rc2 {[%clk 0:00:05.8]} 51. Rf6
{[%clk 0:00:24.5]} 51... a5 {[%clk 0:00:05.8]} 52. bxa5 {[%clk 0:00:24.2]} 52...
bxa5 {[%clk 0:00:06.2]} 53. Rxg6 {[%clk 0:00:24.7]} 53... Ke3 {[%clk 0:00:06.8]}
54. Re6+ {[%clk 0:00:24.7]} 54... Kd4 {[%clk 0:00:07.7]} 55. Ra6 {[%clk
0:00:22.2]} 55... Rc5 {[%clk 0:00:07.3]} 56. Rd6+ {[%clk 0:00:20.5]} 56... Kc4
{[%clk 0:00:07.7]} 57. Ne4 {[%clk 0:00:19.6]} 57... Re5 {[%clk 0:00:06.8]} 58.
Kf3 {[%clk 0:00:19]} 58... Kb3 {[%clk 0:00:06.6]} 59. Rd3+ {[%clk 0:00:18.6]}
59... Kc2 {[%clk 0:00:07.2]} 60. Re3 {[%clk 0:00:18.6]} 60... a4 {[%clk
0:00:06]} 61. g4 {[%clk 0:00:18.7]} 61... Rb5 {[%clk 0:00:06.3]} 62. g5 {[%clk
0:00:17.9]} 62... Rb6 {[%clk 0:00:07]} 63. Kf4 {[%clk 0:00:17.5]} 63... Kb2
{[%clk 0:00:04.5]} 64. Kf5 {[%clk 0:00:16.6]} 64... Rb3 {[%clk 0:00:04.8]} 65.
Rxb3+ {[%clk 0:00:15.3]} 65... axb3 {[%clk 0:00:04.9]} 66. Nc5 {[%clk
0:00:16.2]} 66... Kxa3 {[%clk 0:00:05.1]} 67. Nxb3 {[%clk 0:00:17.1]} 67... Kxb3
{[%clk 0:00:06]} 68. g6 {[%clk 0:00:17.4]} 1-0